fUST/lending_fUST_20251126
["ID","MTS","AMOUNT","RATE_DAILY","PERIOD"]
[394893576,1764086413666,-206.68240134,4.372e-05,2]
[394893579,1764086442693,-93.31759866,4.372e-05,2]
[394893580,1764086442726,-62.75276532,4.372e-05,2]
[394893581,1764086551662,154.563364,0.00014,10]
[394893582,1764086617366,2637.24723468,4.328e-05,2]
[394893583,1764086625352,2637.24723468,4.328e-05,2]
[394893584,1764086633699,922.493131,4.328e-05,2]
[394893585,1764086641566,151.04,1e-05,2]
[394893586,1764086641823,1737.02791015,4.328e-05,2]
[394893587,1764086641906,151.04,1.1e-05,2]
[394893588,1764086642200,151.04,1.2e-05,2]
[394893589,1764086642494,151.04,1.3e-05,2]
[394893590,1764086642830,151.04,1.5e-05,2]
[394893591,1764086643067,151.04,1.6e-05,2]
[394893592,1764086643360,151.04,1.7e-05,2]
[394893593,1764086643660,151.04,1.8e-05,2]
[394893594,1764086644638,151.04,1.9e-05,2]
[394893596,1764086644963,151.04,2e-05,2]
[394893597,1764086645246,151.04,2.1e-05,2]
[394893598,1764086645750,151.04,2.3e-05,2]
[394893599,1764086649574,253.51448949,4.328e-05,2]
[394893600,1764086649598,1366.14097807,4.328e-05,2]
[394893601,1764086657596,150.11123186,4.328e-05,2]
[394893602,1764086674815,231.13420431,9.11e-05,3]
[394893603,1764086766336,154.729244,0.000126,10]
[394893604,1764086771561,1699.32679066,4.272e-05,2]
[394893605,1764086798001,6784.43099941,4.3e-05,2]
[394893606,1764086798033,10000.01,4.3e-05,2]
[394893607,1764086798065,10000.01,4.3e-05,2]
[394893608,1764086798103,95000.0,4.3e-05,2]
[394893609,1764086824369,4942.96243086,4.214e-05,2]
[394893610,1764086950186,-5504.65344486,4.257e-05,2]
[394893611,1764086950206,-1200.0,4.272e-05,2]
[394893612,1764086950228,-300.0,4.272e-05,2]
[394893613,1764086950248,-500.0,4.273e-05,2]
[394893614,1764086950268,-500.0,4.273e-05,2]
[394893615,1764086950290,-500.0,4.273e-05,2]
[394893616,1764086950310,-500.0,4.273e-05,2]
[394893617,1764086950337,-0.33073764,4.3e-05,2]
[394893619,1764087009334,352.65655969,9.11e-05,3]
[394893620,1764087010893,1255.20496232,4.256e-05,2]
[394893631,1764087033720,-300.0,4.299e-05,2]
[394893632,1764087033732,-479.99660122,4.299e-05,2]
[394893633,1764087033743,-720.00339878,4.299e-05,2]
[394893634,1764087033753,-373315.35355608,4.3e-05,2]
[394893635,1764087033817,-1659.15579256,4.3e-05,2]
[394893644,1764087039278,-95243.3999378,4.3e-05,2]
[394893645,1764087039569,-3500.0,4.3e-05,2]
[394893773,1764087042626,-3e-08,4.3e-05,2]
[394893801,1764087075818,300.0,4.256e-05,2]
[394893803,1764087097972,300.0,4.256e-05,2]
[394893804,1764087120783,239.16051107,4.256e-05,2]
[394893805,1764087125435,180.0,5e-05,10]
[394893806,1764087127851,180.0,5e-05,10]
[394893807,1764087130065,180.0,5e-05,10]
[394893808,1764087132565,158.41041749,5e-05,10]
[394893809,1764087134749,180.0,5.5e-05,10]
[394893810,1764087136968,285.606945,5.5e-05,10]
[394893811,1764087150713,296.06202524,4.256e-05,2]
[394893812,1764087153728,154.563364,0.00014,10]
[394893813,1764087195291,167.775529,3.736e-05,2]
[394893814,1764087195636,167.775529,3.736e-05,61]
[394893815,1764087195717,167.775529,3.736e-05,120]
[394893816,1764087202052,493.67928155,0.00021177,120]
[394893817,1764087223297,-325.61409922,4.299e-05,2]
[394893818,1764087224731,-307.18742721,4.299e-05,2]
[394893819,1764087225902,-567.19847357,4.299e-05,2]
[394893820,1764087225936,-300.0,4.299e-05,2]
[394893821,1764087226025,-7240.86796849,4.3e-05,2]
[394893822,1764087226115,-10000.01,4.3e-05,2]
[394893823,1764087226232,-10000.01,4.3e-05,2]
[394893824,1764087226344,-10000.01,4.3e-05,2]
[394893825,1764087226467,-10000.01,4.3e-05,2]
[394893826,1764087226711,-10000.01,4.3e-05,2]
[394893827,1764087226758,-10000.01,4.3e-05,2]
[394893828,1764087226894,-10000.01,4.3e-05,2]
[394893829,1764087227010,-10000.01,4.3e-05,2]
[394893830,1764087227361,-297.17602716,4.3e-05,2]
[394893831,1764087228901,-10000.01,4.3e-05,2]
[394893832,1764087229470,-313.69268593,4.3e-05,2]
[394893833,1764087230917,-287.37240292,4.3e-05,2]
[394893834,1764087231339,938.11508732,0.00014,10]
[394893835,1764087233108,-583.68092744,4.3e-05,2]
[394893836,1764087235020,-10000.01,4.3e-05,2]
[394893837,1764087235338,-10000.01,4.3e-05,2]
[394893838,1764087235486,-10000.01,4.3e-05,2]
[394893839,1764087235522,-192.81257279,4.3e-05,2]
[394893840,1764087235614,-10000.01,4.3e-05,2]
[394893841,1764087235745,-10000.01,4.3e-05,2]
[394893842,1764087236135,-10000.01,4.3e-05,2]
[394893843,1764087236151,-10000.01,4.3e-05,2]
[394893844,1764087236188,-10000.01,4.3e-05,2]
[394893845,1764087240275,-386.28870249,4.3e-05,2]
[394893846,1764087241270,-10000.01,4.3e-05,2]
[394893847,1764087242239,-333.27002933,4.3e-05,2]
[394893848,1764087247464,-300.0,4.299e-05,2]
[394893849,1764087247506,-9400.01,4.3e-05,2]
[394893850,1764087250826,-10000.01,4.3e-05,2]
[394893851,1764087251052,-10000.01,4.3e-05,2]
[394893852,1764087251178,-10000.01,4.3e-05,2]
[394893853,1764087251381,-10000.01,4.3e-05,2]
[394893854,1764087251496,-10000.01,4.3e-05,2]
[394893855,1764087251641,-10000.01,4.3e-05,2]
[394893856,1764087251821,-10000.01,4.3e-05,2]
[394893857,1764087253719,-10000.01,4.3e-05,2]
[394893858,1764087257010,-10000.01,4.3e-05,2]
[394893859,1764087257149,-4538.14234007,4.3e-05,2]
[394893860,1764087257173,-923.72531986,4.3e-05,2]
[394893861,1764087257417,-10000.01,4.311e-05,2]
[394893862,1764087257554,-10000.01,4.311e-05,2]
[394893863,1764087257709,-10000.01,4.311e-05,2]
[394893864,1764087257964,-209.94152059,4.311e-05,2]
[394893865,1764087258000,-4459.37519501,4.311e-05,2]
[394893866,1764087261683,-153.90257288,4.336e-05,2]
[394893867,1764087275845,363.84409347,0.00014,10]
[394893868,1764087282153,-157.78862659,4.336e-05,2]
[394893869,1764087284797,-3.55397771,4.336e-05,2]
[394893870,1764087284820,-236.58685375,4.399e-05,2]
[394893871,1764087285398,42441.79697237,4.2e-05,2]
[394893872,1764087285432,847558.20302763,4.2e-05,2]
[394893873,1764087286753,-63.41314625,4.399e-05,2]
[394893874,1764087286776,-177.27302112,4.399e-05,2]
[394893875,1764087402225,-40.21550808,4.399e-05,2]
[394893876,1764087402254,-127.07537626,4.399e-05,2]
[394893877,1764087403757,-263.00907554,4.399e-05,2]
[394893878,1764087405493,-260.55842518,4.399e-05,2]
[394893879,1764087408564,-297.15110695,4.355e-05,2]
[394893880,1764087410017,-160.33809849,4.355e-05,2]
[394893883,1764087412598,-311.10295343,4.355e-05,2]
[394893884,1764087414544,-290.43999302,4.311e-05,2]
[394893885,1764087417875,-174.04848096,4.311e-05,2]
[394893886,1764087419873,-445.26722533,4.311e-05,2]
[394893887,1764087423426,-212.52786077,4.268e-05,2]
[394893888,1764087427075,-149.33978913,4.268e-05,2]
[394893889,1764087427103,-12.53123013,4.311e-05,2]
[394893890,1764087428584,-300.0,4.311e-05,2]
[394893891,1764087431623,-49.33641977,4.311e-05,2]
[394893892,1764087431650,-219.49636791,4.355e-05,2]
[394893893,1764087433510,-170.93221964,4.355e-05,2]
[394893894,1764087437621,-208.11420655,4.311e-05,2]
[394893895,1764087439140,-255.49883239,4.311e-05,2]
[394893896,1764087442200,-229.07951436,4.311e-05,2]
[394893897,1764087445899,-248.73214471,4.268e-05,2]
[394893898,1764087449018,-110.70228329,4.268e-05,2]
[394893899,1764087449046,-190.11167705,4.311e-05,2]
[394893900,1764087451492,-169.32275095,4.311e-05,2]
[394893901,1764087451518,-93.37541672,4.355e-05,2]
[394893902,1764087453787,147498.83454151,4.2e-05,2]
[394893903,1764087453824,9550.31587575,4.2e-05,2]
[394893904,1764087454386,-226.13145642,4.2e-05,2]
[394893905,1764087458796,-205.51768466,4.2e-05,2]
[394893906,1764087461464,-206.37391731,4.158e-05,2]
[394893907,1764087466213,-165.77318296,4.158e-05,2]
[394893908,1764087467774,-166.62506029,4.158e-05,2]
[394893909,1764087469224,-326.881491,4.116e-05,2]
[394893910,1764087472244,-231.74669824,4.116e-05,2]
[394893911,1764087474683,-498.1575924,4.116e-05,2]
[394893912,1764087476283,-405.51768466,4.116e-05,2]
[394893913,1764087480470,-202.2851416,4.116e-05,2]
[394893914,1764087482136,-424.57307729,4.116e-05,2]
[394893915,1764087485187,-271.82906116,4.116e-05,2]
[394893916,1764087488582,-215.92605713,4.116e-05,2]
[394893917,1764087490123,-211.91424388,4.116e-05,2]
[394893918,1764087493179,-226.23737877,4.116e-05,2]
[394893919,1764087495875,-151.51972269,4.116e-05,2]
[394893920,1764087498422,-300.0,4.116e-05,2]
[394893921,1764087501394,-203.87446412,4.116e-05,2]
[394893922,1764087502826,169.725959,1.853e-05,2]
[394893923,1764087503073,169.725959,3.706e-05,2]
[394893924,1764087503141,-308.22991976,4.116e-05,2]
[394893930,1764087504640,-240.94883854,4.116e-05,2]
[394893933,1764087506101,-171.70734668,4.116e-05,2]
[394893934,1764087509354,-298.82720458,4.116e-05,2]
[394893935,1764087510765,-159.01099713,4.116e-05,2]
[394893936,1764087512659,-262.60806453,4.116e-05,2]
[394893937,1764087515985,-520.6625333,4.116e-05,2]
[394893938,1764087518265,-402.55461258,4.116e-05,2]
[394893939,1764087521373,-198.97046827,4.116e-05,2]
[394893940,1764087525561,-203.89487823,4.116e-05,2]
[394893941,1764087527526,-291.64286549,4.116e-05,2]
[394893942,1764087528947,-222.35879455,4.116e-05,2]
[394893943,1764087531472,-189.57158706,4.116e-05,2]
[394893944,1764087533414,-375.84521079,4.116e-05,2]
[394893945,1764087535280,-264.7672137,4.116e-05,2]
[394893946,1764087538373,-241.0340888,4.116e-05,2]
[394893947,1764087541395,-246.30537198,4.116e-05,2]
[394893948,1764087544125,-362.05467552,4.116e-05,2]
[394893949,1764087546852,-174.61204991,4.116e-05,2]
[394893950,1764087549766,-228.26069778,4.116e-05,2]
[394893951,1764087553880,-218.49211706,4.116e-05,2]
[394893952,1764087555358,-59.53459233,4.116e-05,2]
[394893953,1764087555393,-210.06300563,4.157e-05,2]
[394893954,1764087557653,-287.63592248,4.157e-05,2]
[394893955,1764087561384,-238.11215837,4.157e-05,2]
[394893956,1764087563403,-381.22615863,4.157e-05,2]
[394893957,1764087569245,-82.96275489,4.157e-05,2]
[394893958,1764087569277,-300.0,4.157e-05,2]
[394893959,1764087569309,-43.86477191,4.158e-05,2]
[394893960,1764087571298,-257.43410524,4.158e-05,2]
[394893961,1764087575117,-188.92525109,4.158e-05,2]
[394893962,1764087576739,-292.51805573,4.158e-05,2]
[394893963,1764087578200,-340.58420811,4.158e-05,2]
[394893964,1764087581854,-357.98197911,4.158e-05,2]
[394893965,1764087585531,-332.91110399,4.158e-05,2]
[394893966,1764087588384,-241.37002,4.158e-05,2]
[394893967,1764087590141,-187.05912285,4.158e-05,2]
[394893968,1764087595031,-155.73526175,4.158e-05,2]
[394893969,1764087598727,-151.3794719,4.158e-05,2]
[394893970,1764087602369,-151.59932902,4.116e-05,2]
[394893971,1764087605915,-316.8500108,4.116e-05,2]
[394893972,1764087607397,-228.71516593,4.116e-05,2]
[394893973,1764087627410,-170.59340552,4.116e-05,2]
[394893974,1764087628955,-189.14427739,4.116e-05,2]
[394893975,1764087631566,-159.64954227,4.116e-05,2]
[394893976,1764087634709,-171.85336469,4.116e-05,2]
[394893977,1764087636645,-318.3467873,4.116e-05,2]
[394893978,1764087638344,-155.86225045,4.116e-05,2]
[394893979,1764087640145,-214.39293793,4.116e-05,2]
[394893980,1764087641516,-347.89351051,4.116e-05,2]
[394893981,1764087644560,-252.83679458,4.116e-05,2]
[394893982,1764087646354,-277.84821052,4.116e-05,2]
[394893983,1764087648304,-249.58597976,4.116e-05,2]
[394893984,1764087651803,-286.96051857,4.116e-05,2]
[394893985,1764087654514,-209.04826266,4.075e-05,2]
[394893986,1764087656643,-246.21203509,4.075e-05,2]
[394893987,1764087662444,-226.69511792,4.034e-05,2]
[394893988,1764087664385,-216.30933243,4.034e-05,2]
[394893989,1764087665838,-403.18770717,4.034e-05,2]
[394893990,1764087669871,-217.43113029,4.034e-05,2]
[394893991,1764087673367,-221.4553788,4.034e-05,2]
[394893992,1764087675548,-249.26092958,4.034e-05,2]
[394893993,1764087678677,-181.79943863,4.034e-05,2]
[394893994,1764087680730,-95.9210565,4.034e-05,2]
[394893995,1764087680757,-131.20827174,4.075e-05,2]
[394893996,1764087684367,-285.53492649,4.075e-05,2]
[394893997,1764087685902,-227.84698348,4.075e-05,2]
[394893998,1764087688362,-247.11891598,4.075e-05,2]
[394893999,1764087689820,-248.31840874,4.075e-05,2]
[394894000,1764087691891,-270.45423746,4.075e-05,2]
[394894001,1764087693906,-175.26723728,4.075e-05,2]
[394894002,1764087695396,-216.95369689,4.075e-05,2]
[394894003,1764087697060,-9.35741326,4.075e-05,2]
[394894004,1764087697095,-176.57860644,4.116e-05,2]
[394894005,1764087792305,-234.4819738,4.014e-05,2]
[394894006,1764087793925,-84.48018325,4.014e-05,2]
[394894007,1764087793958,-73.28893659,4.055e-05,2]
[394894008,1764087804644,245.67322046,3.974e-05,2]
[394894015,1764087827215,245.67322046,3.974e-05,2]
[394894037,1764087849384,245.67322046,3.974e-05,2]
[394894038,1764087853075,357.63,0.0002,30]
[394894039,1764087870870,245.67322046,3.974e-05,2]
[394894040,1764087892514,245.67322046,3.974e-05,2]
[394894041,1764087900573,245.67322046,3.974e-05,2]
[394894042,1764087912822,472.0,0.000204,120]
[394894043,1764087914204,472.0,0.0002142,120]
[394894044,1764087915479,245.67322046,3.974e-05,2]
[394894045,1764087923350,245.67322046,3.974e-05,2]
[394894046,1764087933827,568.0,0.00021073,120]
[394894047,1764087938169,245.67322046,3.974e-05,2]
[394894048,1764087938862,-245.67322046,4.014e-05,2]
[394894049,1764087938888,-140.10554061,4.096e-05,2]
[394894051,1764087962565,178.85661644,3.974e-05,2]
[394894052,1764087984283,178.85661644,3.974e-05,2]
[394894053,1764088002180,-178.85661644,4.014e-05,2]
[394894054,1764088002208,-9.5397063,4.055e-05,2]
[394894055,1764088021867,169.31691014,3.974e-05,2]
[394894058,1764088043910,169.31691014,3.974e-05,2]
[394894059,1764088065531,169.31691014,3.974e-05,2]
[394894060,1764088087316,169.31691014,3.974e-05,2]
[394894061,1764088094170,188.0,0.0002,120]
[394894063,1764088110320,169.31691014,3.974e-05,2]
[394894064,1764088117470,226.92222899,0.0001536,120]
[394894071,1764088123845,249.0,0.0002,120]
[394894073,1764088133037,169.31691014,3.974e-05,2]
[394894074,1764088148148,169.31691014,3.974e-05,2]
[394894075,1764088155937,169.31691014,3.974e-05,2]
[394894076,1764088170810,169.31691014,3.974e-05,2]
[394894077,1764088178657,169.31691014,3.974e-05,2]
[394894078,1764088193255,169.31691014,3.974e-05,2]
[394894079,1764088208970,169.31691014,3.974e-05,2]
[394894080,1764088213906,236.0,0.00021049,120]
[394894081,1764088217108,322.00793969,3.994e-05,2]
[394894111,1764088232007,-322.00793969,4.035e-05,2]
[394894112,1764088232017,-1000.0,4.158e-05,2]
[394894113,1764088232026,-349.35712302,4.158e-05,2]
[394894114,1764088232035,-287.97206877,4.199e-05,2]
[394894115,1764088232078,322.00793969,3.994e-05,2]
[394894116,1764088237089,341.0,0.00021088,120]
[394894167,1764088238857,-12.02793123,4.199e-05,2]
[394894168,1764088238868,-988.97205467,4.199e-05,2]
[394894169,1764088238885,-211.02794533,4.199e-05,2]
[394894170,1764088238896,-89393.80295173,4.2e-05,2]
[394894181,1764088239804,173.93101448,4.157e-05,2]
[394894247,1764088240642,-8732.68344388,4.2e-05,2]
[394894272,1764088240914,-4779.3437609,4.2e-05,2]
[394894361,1764088242109,-1.94663257,4.2e-05,2]
[394894415,1764088245498,-1662.0,4.2e-05,2]
[394894428,1764088245602,-48.07484687,4.2e-05,2]
[394894517,1764088246629,-484.29175519,4.2e-05,2]
[394894519,1764088246640,-2374.00708594,4.2e-05,2]
[394894524,1764088246987,-1425.02036783,4.2e-05,2]
[394894525,1764088254920,10000.01,4.158e-05,2]
[394894526,1764088254959,5570.24543874,4.158e-05,2]
[394894531,1764088422772,-223.84180775,4.199e-05,2]
[394894532,1764088424828,-168.28269055,4.199e-05,2]
[394894533,1764088426115,-288.19308282,4.199e-05,2]
[394894534,1764088427562,-211.80691718,4.199e-05,2]
[394894535,1764088429369,-241.20937038,4.199e-05,2]
[394894536,1764088430947,-66.66613132,4.199e-05,2]
[394894537,1764088430975,-300.0,4.199e-05,2]
[394894538,1764088431003,-315.5677809,4.2e-05,2]
[394894539,1764088431034,-141.77840047,4.2e-05,2]
[394894540,1764088433651,-345.38080514,4.2e-05,2]
[394894541,1764088435664,-337.64444272,4.2e-05,2]
[394894542,1764088439487,-412.5051894,4.2e-05,2]
[394894543,1764088440969,-281.1712487,4.2e-05,2]
[394894544,1764088444710,-164.45472772,4.199e-05,2]
[394894545,1764088447255,-135.54527228,4.199e-05,2]
[394894546,1764088447289,-169.0710122,4.2e-05,2]
[394894547,1764088449441,-210.27159115,4.2e-05,2]
[394894548,1764088454709,-295.85710167,4.2e-05,2]
[394894549,1764088456134,-365.34739187,4.2e-05,2]
[394894550,1764088457515,-220.55197004,4.2e-05,2]
[394894551,1764088459053,-177.90242636,4.2e-05,2]
[394894552,1764088460446,-266.44612548,4.2e-05,2]
[394894553,1764088462876,-491.64796342,4.2e-05,2]
[394894554,1764088464985,-233.58531602,4.2e-05,2]
[394894555,1764088467095,-352.61668284,4.2e-05,2]
[394894556,1764088470905,-242.06636562,4.1e-05,2]
[394894557,1764088472383,-238.77603222,4.1e-05,2]
[394894558,1764088474881,-378.42095509,4.1e-05,2]
[394894559,1764088478051,-296.67235938,4.1e-05,2]
[394894560,1764088480091,-279.86416778,4.1e-05,2]
[394894561,1764088482079,-162.35555728,4.1e-05,2]
[394894562,1764088485840,-376.92022739,4.1e-05,2]
[394894563,1764088488413,-174.24429555,4.059e-05,2]
[394894564,1764088491538,-320.19035369,4.059e-05,2]
[394894565,1764088493902,-9.83404139,4.059e-05,2]
[394894566,1764088493933,-337.73958476,4.1e-05,2]
[394894567,1764088495439,-265.32804676,4.1e-05,2]
[394894568,1764088498001,-300.0,4.1e-05,2]
[394894569,1764088500020,-161.96892812,4.1e-05,2]
[394894570,1764088501493,-261.54002788,4.1e-05,2]
[394894571,1764088502924,-181.83144987,4.099e-05,2]
[394894572,1764088506639,-118.16855013,4.099e-05,2]
[394894573,1764088506662,-183.72630386,4.099e-05,2]
[394894576,1764088508326,-116.27369614,4.099e-05,2]
[394894577,1764088508353,-183.72630386,4.099e-05,2]
[394894582,1764088511225,-206.68240134,4.099e-05,2]
[394894583,1764088515213,-229.21548327,4.099e-05,2]
[394894584,1764088515885,177.0,0.00021138,120]
[394894585,1764088517284,-300.0,4.058e-05,2]
[394894586,1764088519325,-276.53652716,4.058e-05,2]
[394894587,1764088519357,-16.1651421,4.099e-05,2]
[394894588,1764088522415,-155.57518655,4.099e-05,2]
[394894589,1764088532755,204.0,0.00021229,120]
[394894590,1764088542255,-153.43708031,4.058e-05,2]
[394894591,1764088544329,-206.68240134,4.058e-05,2]
[394894592,1764088547385,-48.51600123,4.058e-05,2]
[394894593,1764088547407,-228.82799958,4.099e-05,2]
[394894594,1764088549382,-179.8074833,4.099e-05,2]
[394894595,1764088549407,-115.52216443,4.1e-05,2]
[394894596,1764088551574,-164.87319919,4.1e-05,2]
[394894597,1764088553561,-155.49811612,4.1e-05,2]
[394894598,1764088555047,-448.40115235,4.1e-05,2]
[394894599,1764088562550,677.10485539,0.00014,10]
[394894600,1764088571613,1064.10211539,0.00014,10]
[394894601,1764088619190,4415.95706392,3.833e-05,2]
[394894602,1764088810703,177.0,0.00021183,120]
[394894603,1764088827254,-226.99311996,3.832e-05,2]
[394894604,1764088828741,-1.00688004,3.832e-05,2]
[394894605,1764088828762,-260.11814839,3.832e-05,2]
[394894606,1764088830778,226.99311996,0.00014,10]
[394894607,1764088830807,-39.88185161,3.832e-05,2]
[394894608,1764088830828,-133.38116895,3.832e-05,2]
[394894609,1764088835108,-166.61883105,3.832e-05,2]
[394894610,1764088835132,-166.04038303,3.832e-05,2]
[394894611,1764088835468,175.0,0.00021343,120]
[394894612,1764088836580,-171.90376807,3.832e-05,2]
[394894614,1764088838775,-248.83967174,3.832e-05,2]
[394894615,1764088841876,-195.54614795,3.832e-05,2]
[394894616,1764088845553,-246.25225795,3.832e-05,2]
[394894617,1764088845865,444.38581969,0.00014,10]
[394894618,1764088847124,-171.41777126,3.832e-05,2]
[394894619,1764088847148,-73.79432668,3.833e-05,2]
[394894620,1764088848531,-202.54324198,3.833e-05,2]
[394894621,1764088850474,-32.91885662,3.833e-05,2]
[394894622,1764088850502,-184.21399783,3.833e-05,2]
[394894623,1764088855053,-248.97491769,3.833e-05,2]
[394894624,1764088857957,-168.73432618,3.833e-05,2]
[394894625,1764088860097,-203.55812264,3.833e-05,2]
[394894626,1764088863243,-300.0,3.832e-05,2]
[394894627,1764088863265,-12.03456187,3.833e-05,2]
[394894628,1764088866768,-187.96543813,3.833e-05,2]
[394894629,1764088868779,-167.17568327,3.795e-05,2]
[394894630,1764088875007,-79.07657468,3.795e-05,2]
[394894631,1764088875029,-100.82231142,3.833e-05,2]
[394894632,1764088877193,-196.39386214,3.833e-05,2]
[394894633,1764088878854,-214.70131481,3.833e-05,2]
[394894634,1764088882536,-300.0,3.833e-05,2]
[394894635,1764088884530,-320.78017685,3.833e-05,2]
[394894636,1764088886529,-179.21982315,3.833e-05,2]
[394894637,1764088888850,-440.88129075,3.833e-05,2]
[394894638,1764088894193,-223.04978818,3.833e-05,2]
[394894639,1764088895630,-182.82596101,3.833e-05,2]
[394894640,1764088898378,-332.82431673,3.833e-05,2]
[394894641,1764088900796,-362.78096674,3.833e-05,2]
[394894642,1764088912607,302.940012,3.795e-05,2]
[394894643,1764088945557,206.68240134,3.732e-05,2]
[394894644,1764088990395,406.21,0.000215,120]
[394894648,1764089348141,-1200.0,3.832e-05,2]
[394894649,1764089348162,-300.0,3.832e-05,2]
[394894650,1764089348342,-300.0,3.832e-05,2]
[394894651,1764089348367,-309.30701039,3.832e-05,2]
[394894652,1764089348388,-6185.11772603,3.833e-05,2]
[394894708,1764089438023,-300.0,3.832e-05,2]
[394894709,1764089438033,-1200.0,3.832e-05,2]
[394894710,1764089438043,-12032.93851093,3.833e-05,2]
[394894711,1764089438053,-300.0,3.909e-05,2]
[394894712,1764089438064,-300.0,3.909e-05,2]
[394894713,1764089438074,-300.0,3.909e-05,2]
[394894714,1764089438083,-300.0,3.909e-05,2]
[394894715,1764089438093,-300.0,3.909e-05,2]
[394894716,1764089438102,-300.0,3.909e-05,2]
[394894717,1764089438112,-300.0,3.909e-05,2]
[394894718,1764089438122,-300.0,3.909e-05,2]
[394894719,1764089438132,-300.0,3.909e-05,2]
[394894720,1764089438142,-300.0,3.909e-05,2]
[394894721,1764089438152,-300.0,3.909e-05,2]
[394894722,1764089438161,-300.0,3.909e-05,2]
[394894723,1764089438171,-300.0,3.909e-05,2]
[394894724,1764089438182,-300.0,3.909e-05,2]
[394894725,1764089438191,-300.0,3.909e-05,2]
[394894726,1764089438201,-50556.29830968,4.1e-05,2]
[394894727,1764089438211,-163.1163969,4.122e-05,2]
[394894728,1764089438224,-168.6060877,4.13e-05,2]
[394894729,1764089438233,-600.0,4.181e-05,2]
[394894730,1764089438242,-420.0,4.216e-05,2]
[394894731,1764089438252,-385.0,4.216e-05,2]
[394894732,1764089438263,-4077.22430957,4.535e-05,2]
[394894733,1764089438272,-2254.21565313,4.546e-05,2]
[394894734,1764089438282,-720.0,4.599e-05,2]
[394894735,1764089438291,-500.0,4.6e-05,2]
[394894736,1764089438303,-500.0,4.6e-05,2]
[394894737,1764089438312,-216.9965353,4.6e-05,2]
[394894738,1764089438323,-500.0,4.6e-05,2]
[394894739,1764089438332,-500.0,4.6e-05,2]
[394894740,1764089438341,-500.0,4.6e-05,2]
[394894741,1764089438351,-500.0,4.6e-05,2]
[394894742,1764089438360,-500.0,4.6e-05,2]
[394894743,1764089438369,-501.74235247,4.6e-05,2]
[394894744,1764089438379,-500.0,4.6e-05,2]
[394894745,1764089438388,-500.0,4.6e-05,2]
[394894746,1764089438398,-250.38864687,4.616e-05,2]
[394894747,1764089438408,-163.1163969,4.617e-05,2]
[394894748,1764089438417,-587.0,4.637e-05,2]
[394894749,1764089438427,-2254.21565313,4.696e-05,2]
[394894750,1764089438436,-4077.22430957,4.759e-05,2]
[394894751,1764089438445,-504.27793462,4.973e-05,2]
[394894752,1764089438455,-161.15839785,4.973e-05,2]
[394894753,1764089438464,-500.0,4.973e-05,2]
[394894754,1764089438474,-500.0,4.973e-05,2]
[394894755,1764089438483,-500.0,4.973e-05,2]
[394894756,1764089438492,-500.0,4.973e-05,2]
[394894757,1764089438502,-482.96952747,4.973e-05,2]
[394894758,1764089438511,-512.13460884,4.973e-05,2]
[394894759,1764089438520,-500.0,4.973e-05,2]
[394894760,1764089438531,-500.0,4.973e-05,2]
[394894761,1764089438540,-500.0,4.973e-05,2]
[394894762,1764089438549,-500.0,4.973e-05,2]
[394894763,1764089438559,-500.0,4.973e-05,2]
[394894764,1764089438572,-518.39835129,4.973e-05,2]
[394894765,1764089438581,-500.0,4.973e-05,2]
[394894766,1764089438591,-418.18895891,4.973e-05,2]
[394894767,1764089438600,-500.0,4.973e-05,2]
[394894768,1764089438609,-500.0,4.973e-05,2]
[394894769,1764089438619,-500.0,4.973e-05,2]
[394894770,1764089438628,-500.0,4.973e-05,2]
[394894771,1764089438638,-500.0,4.973e-05,2]
[394894772,1764089438648,-483.70962505,4.973e-05,2]
[394894773,1764089438657,-500.0,4.973e-05,2]
[394894774,1764089438667,-500.98176125,4.973e-05,2]
[394894775,1764089438676,-158.30356663,4.973e-05,2]
[394894776,1764089438686,-500.0,4.973e-05,2]
[394894777,1764089438695,-500.0,4.973e-05,2]
[394894778,1764089438705,-278.2295679,4.973e-05,2]
[394894779,1764089438719,-500.0,4.973e-05,2]
[394894780,1764089438736,-500.0,4.973e-05,2]
[394894781,1764089438746,-500.0,4.973e-05,2]
[394894782,1764089438756,-500.0,4.973e-05,2]
[394894783,1764089438766,-500.0,4.973e-05,2]
[394894784,1764089438775,-500.0,4.973e-05,2]
[394894785,1764089438784,-500.0,4.973e-05,2]
[394894786,1764089438793,-500.0,4.973e-05,2]
[394894787,1764089438802,-500.0,4.973e-05,2]
[394894788,1764089438811,-500.0,4.973e-05,2]
[394894789,1764089438823,-501.3951329,4.973e-05,2]
[394894790,1764089438832,-1061.0,4.973e-05,2]
[394894791,1764089438841,-151.0,4.973e-05,2]
[394894792,1764089438851,-500.0,4.973e-05,2]